bitfinex/quotes_SOLUSD_20250817
["timestamp","ask_amount","ask_price","bid_price","bid_amount"]
[1755393301016,3.89031005,188.11,188.1,0.58]
[1755393301220,4.03004627,188.17,188.1,3.84289411]
[1755393301420,3.89068161,188.16,188.13,3.26289411]
[1755393301726,3.89068161,188.16,188.11,0.58]
[1755393301727,4.41955827,188.15,188.14,0.58]
[1755393301930,4.41955827,188.15,188.12,0.58]
[1755393302111,3.89068161,188.14,188.12,0.58]
[1755393302308,0.52887666,188.15,188.13,0.58]
[1755393302514,3.88754713,188.14,188.13,0.58]
[1755393302721,3.88754713,188.14,188.11,3.26289411]
[1755393302922,4.03004627,188.16,188.14,0.58]
[1755393303220,5.516432,188.17,188.15,3.26289411]
[1755393303424,4.4172173,188.16,188.11,3.26289411]
[1755393303627,3.88834064,188.15,188.1,5.3162668]
[1755393303815,0.52887666,188.16,188.12,3.26289411]
[1755393304132,0.52887666,188.17,188.15,3.26289411]
[1755393304335,3.88822172,188.16,188.15,5.31479939]
[1755393304540,3.88822172,188.16,188.15,3.26289411]
[1755393304924,3.88822172,188.16,188.15,3.84289411]
[1755393305439,3.49918213,188.19,188.15,9.15780242]
[1755393305739,3.49918213,188.21,188.18,3.26289411]
[1755393305928,3.49918213,188.23,188.2,3.26289411]
[1755393306251,7.38909254,188.22,188.21,3.84289411]
[1755393306415,11.18086331,188.22,188.18,0.58]
[1755393306610,10.65198665,188.21,188.15,31.31487011]
[1755393306817,3.26289411,188.17,188.14,0.58]
[1755393307038,4.41878707,188.16,188.1,3.26289411]
[1755393307337,3.50159229,188.18,188.15,3.84289411]
[1755393307538,3.89099852,188.17,188.16,0.58]
[1755393307909,3.89099852,188.17,188.1,5.31620341]
[1755393308110,3.89099852,188.16,188.11,0.58]
[1755393308354,3.89396195,188.15,188.12,5.3157559]
[1755393308526,0.52887666,188.18,188.13,0.58]
[1755393308836,10.66120348,188.17,188.12,0.58]
[1755393309038,3.26289411,188.15,188.12,0.58]
[1755393309246,7.92657473,188.14,188.1,0.58]
[1755393309410,3.26289411,188.12,188.09,0.2]
[1755393309613,3.89398197,188.11,188.1,3.26289411]
[1755393309814,3.89398197,188.11,188.1,3.84289411]
[1755393310550,3.89398197,188.11,188.1,9.15921521]
[1755393310918,3.89398197,188.11,188.1,3.84289411]
[1755393311721,3.89398197,188.11,188.1,0.58]
[1755393312333,7.40733673,188.11,188.1,0.58]
[1755393312537,7.40733673,188.11,188.09,3.46289411]
[1755393312538,7.40733673,188.11,188.09,0.2]
[1755393312722,7.40733673,188.1,188.09,0.2]
[1755393316925,3.51335476,188.1,188.09,0.2]
[1755393317145,7.43370617,188.1,188.09,0.2]
[1755393317522,7.48624887,188.1,188.09,0.2]
[1755393318043,7.43554757,188.1,188.09,0.2]
[1755393319947,16.72476278,188.1,188.09,0.2]
[1755393320153,16.72476278,188.1,188.05,0.03]
[1755393320354,7.67482896,188.07,188.05,0.03]
[1755393320670,15.63925319,188.06,188.05,0.03]
[1755393320880,11.93731834,188.06,188.05,0.03]
[1755393322081,17.25477021,188.06,188.05,0.03]
[1755393322431,19.88402933,188.06,188.05,0.03]
[1755393322636,13.9918761,188.06,188.05,0.03]
[1755393322836,23.14692344,188.06,188.05,0.03]
[1755393323039,23.14692344,188.06,188.03,0.03]
[1755393323040,26.0,188.04,188.03,0.03]
[1755393323268,36.69844168,188.04,188.0,0.03]
[1755393323458,3.26289411,188.01,188.0,0.03]
[1755393323640,11.22731834,188.01,188.0,0.03]
[1755393323841,11.93731834,188.01,188.0,0.03]
[1755393324232,17.25618435,188.01,188.0,0.03]
[1755393324463,21.65922077,188.01,188.0,0.03]
[1755393325163,17.25618435,188.01,188.0,0.03]
[1755393325387,21.65658388,188.01,188.0,0.03]
[1755393325543,17.25618435,188.01,188.0,0.03]
[1755393326575,43.25618435,188.01,188.0,0.03]
[1755393326879,58.36239992,188.01,188.0,0.03]
[1755393327266,64.23702149,188.01,188.0,0.03]
[1755393327486,64.22184741,188.01,188.0,0.03]
[1755393328080,43.25618435,188.01,188.0,0.03]
[1755393328300,33.96442423,188.01,188.0,0.03]
[1755393330177,7.96442423,188.01,188.0,0.03]
[1755393330984,8.67442423,188.01,188.0,0.03]
[1755393332157,7.96442423,188.01,188.0,0.03]
[1755393332367,0.52887666,188.02,188.0,0.03]
[1755393332661,0.52887666,188.03,188.0,3.90289411]
[1755393332882,3.51330417,188.05,188.02,3.26289411]
[1755393333182,0.52887666,188.07,188.04,3.26289411]
[1755393333395,0.52887666,188.07,188.03,3.87289411]
[1755393333584,3.51468686,188.06,188.04,3.26289411]
[1755393333901,0.52887666,188.07,188.04,3.26289411]
[1755393334056,3.51459243,188.06,188.04,3.26289411]
[1755393334259,0.52887666,188.08,188.04,3.87289411]
[1755393334479,3.51509558,188.07,188.04,3.26289411]
[1755393334705,4.75397224,188.06,188.01,3.26289411]
[1755393334907,4.22491444,188.05,188.0,0.03]
[1755393335207,0.71,188.05,188.01,3.26289411]
[1755393335935,0.71,188.05,188.0,0.03]
[1755393335936,6.02777332,188.05,188.0,0.03]
[1755393336066,3.26289411,188.02,188.0,0.03]
[1755393336262,3.79177077,188.01,188.0,0.03]
[1755393336506,0.52887666,188.01,188.0,0.03]
[1755393336679,3.51497662,188.02,188.0,3.90289411]
[1755393336994,3.51497662,188.03,188.01,0.61]
[1755393337195,0.52887666,188.04,188.01,0.61]
[1755393337405,3.51588613,188.03,188.01,0.61]
[1755393337690,0.52887666,188.04,188.0,3.29289411]
[1755393337892,3.51588465,188.03,188.0,3.90289411]
[1755393338106,0.52887666,188.04,188.01,3.26289411]
[1755393338310,3.51599633,188.03,188.0,0.03]
[1755393338463,1.23887666,188.04,188.0,0.03]
[1755393338668,3.5165268,188.03,188.0,0.03]
[1755393338888,1.23887666,188.04,188.0,3.29289411]
[1755393339095,3.5165268,188.03,188.0,3.29289411]
[1755393339312,1.23887666,188.02,188.0,0.03]
[1755393339492,4.50177077,188.02,188.0,0.03]
[1755393339667,0.71,188.01,188.0,0.03]
[1755393340601,9.5464391,188.01,188.0,0.03]
[1755393340778,4.22757309,188.01,188.0,0.03]
[1755393341103,8.01934386,188.01,188.0,0.03]
[1755393341307,17.24613626,188.01,188.0,0.03]
[1755393342183,8.01934386,188.01,188.0,0.03]
[1755393343176,13.33820987,188.01,188.0,0.03]
[1755393344380,17.2505751,188.01,188.0,0.03]
[1755393344801,17.2605751,188.01,188.0,0.03]
[1755393345193,19.3928281,188.01,188.0,0.03]
[1755393345502,17.2605751,188.01,188.0,0.03]
[1755393346096,17.26118126,188.01,188.0,0.03]
[1755393346600,19.39343426,188.01,188.0,0.03]
[1755393348916,34.49964983,188.01,188.0,0.03]
[1755393349502,38.89239939,188.01,188.0,0.03]
[1755393349687,29.26289411,187.99,187.98,0.03]
[1755393349886,74.70231525,187.99,187.98,0.03]
[1755393350090,75.42231525,187.99,187.98,0.03]
[1755393350293,79.82531942,187.99,187.98,0.03]
[1755393350491,75.42231525,187.99,187.98,0.03]
[1755393351005,80.74174713,187.99,187.98,0.03]
[1755393351208,85.1447513,187.99,187.98,0.03]
[1755393352691,102.38344687,187.99,187.98,0.03]
[1755393353311,97.9804427,187.99,187.98,0.03]
[1755393353485,102.38892642,187.99,187.98,0.03]
[1755393355009,102.39571519,187.99,187.98,0.03]
[1755393355313,84.43901262,187.99,187.98,0.03]
[1755393355889,85.15901262,187.99,187.98,0.03]
[1755393356318,80.76022647,187.99,187.98,0.03]
[1755393356489,85.17180604,187.99,187.98,0.03]
[1755393357736,81.90891193,187.99,187.98,0.03]
[1755393357935,71.45790048,187.99,187.98,0.03]
[1755393358290,74.72079459,187.99,187.98,0.03]
[1755393358492,80.76022647,187.99,187.98,0.03]
[1755393359297,85.17180604,187.99,187.98,0.03]
[1755393359491,100.27802161,187.99,187.98,0.03]
[1755393359724,99.12933615,187.99,187.98,0.03]
[1755393359927,18.36910968,187.97,187.96,0.03]
[1755393360092,68.24257948,187.97,187.96,0.03]
[1755393360288,64.54701016,187.97,187.96,0.03]
[1755393360517,70.40645765,187.97,187.96,0.03]
[1755393361276,69.86700803,187.97,187.96,0.03]
[1755393361427,75.75686813,187.97,187.96,0.03]
[1755393361622,69.86700803,187.97,187.96,0.03]
[1755393361828,26.0,187.95,187.94,0.03]
[1755393362053,41.10621557,187.93,187.92,0.03]
[1755393362234,69.71545555,187.93,187.92,0.03]
[1755393362437,64.54701016,187.93,187.92,0.03]
[1755393362926,64.5535078,187.93,187.92,0.03]
[1755393363428,69.87659318,187.93,187.92,0.03]
[1755393363830,75.76503857,187.93,187.92,0.03]
[1755393364032,69.19659318,187.93,187.92,0.03]
[1755393364565,69.19659318,187.93,187.88,0.61]
[1755393364802,29.26289411,187.9,187.88,0.61]
[1755393364927,3.52926366,187.89,187.88,0.61]
[1755393367051,3.52926366,187.89,187.87,3.26289411]
[1755393367235,3.52926366,187.88,187.87,3.87289411]
[1755393367755,3.52926366,187.88,187.87,9.19572372]
[1755393368069,4.94725638,187.95,187.87,12.45861783]
[1755393368255,3.5347129,187.94,187.88,18.97910968]
[1755393368554,0.52887666,187.97,187.93,3.26289411]
[1755393368760,3.53497905,187.96,187.94,3.87289411]
[1755393369067,3.53497905,187.95,187.94,3.87289411]
[1755393370770,3.53497905,187.95,187.94,9.19374118]
[1755393371459,38.04887666,187.98,187.94,9.19374118]
[1755393371664,3.53434017,187.97,187.95,0.61]
[1755393371858,0.06,187.99,187.96,3.87289411]
[1755393372058,3.53448402,187.98,187.96,0.61]
[1755393372241,3.53448402,187.97,187.96,0.61]
[1755393373172,0.06,187.99,187.96,3.87289411]
[1755393373342,0.06,187.99,187.98,3.26289411]
[1755393373542,3.59550259,187.99,187.98,8.58260897]
[1755393373851,3.59550259,187.99,187.98,9.19260897]
[1755393375473,0.06,187.99,187.98,9.19260897]
[1755393376337,0.06,187.99,187.98,0.61]
[1755393376548,0.06,187.99,187.97,3.26289411]
[1755393377863,0.78,187.99,187.95,3.26289411]
[1755393378246,4.84395678,187.99,187.95,3.26289411]
[1755393378668,3.59508012,187.99,187.98,3.26289411]
[1755393378850,0.06,187.99,187.98,3.26289411]
[1755393379054,0.06,187.99,187.96,3.26289411]
[1755393380272,4.31870046,187.99,187.93,85.86109878]
[1755393380576,3.53855624,187.98,187.95,3.26289411]
[1755393381246,0.78,187.99,187.96,3.26289411]
[1755393381473,3.53903247,187.98,187.96,3.26289411]
[1755393381669,0.06,187.99,187.96,3.26289411]
[1755393381874,3.53903247,187.98,187.96,3.26289411]
[1755393382165,0.06,187.99,187.97,3.26289411]
[1755393382963,0.06,187.99,187.98,3.87289411]
[1755393383170,3.59996449,187.99,187.98,3.26289411]
[1755393384175,3.59996449,187.99,187.97,3.26289411]
[1755393384476,0.06,187.99,187.97,3.26289411]
[1755393384655,0.06,187.99,187.98,3.87289411]
[1755393384970,0.60124847,187.99,187.98,3.87289411]
[1755393385966,0.60124847,187.99,187.98,3.26289411]
[1755393386163,0.06,188.01,187.98,9.19260897]
[1755393386374,0.06,188.01,188.0,3.26289411]
[1755393387154,0.06,188.01,188.0,9.19204304]
[1755393389472,1e-08,188.01,188.0,104.7301735]
[1755393389686,0.06,188.03,188.02,41.10621557]
[1755393389848,0.06,188.03,188.02,82.40096799]
[1755393390043,0.06,188.03,188.02,83.01096799]
[1755393390753,0.06,188.03,188.02,88.32955111]
[1755393391469,0.06,188.05,188.03,15.10621557]
[1755393391793,0.06,188.07,188.04,0.53180174]
[1755393391980,0.72,188.06,188.02,46.06147723]
[1755393392660,0.72,188.06,188.02,40.88289411]
[1755393393900,0.72,188.06,188.02,46.20139792]
[1755393397793,0.06,188.07,188.03,0.61]
[1755393398466,0.06,188.07,188.06,3.26289411]
[1755393398659,0.06,188.07,188.06,56.55910968]
[1755393398864,0.06,188.07,188.05,120.74289411]
[1755393399364,0.06,188.07,188.05,126.06061522]
[1755393399587,0.06,188.07,188.05,117.48]
[1755393399771,0.78,188.07,188.05,79.9]
[1755393399977,0.06,188.07,188.05,117.52]
[1755393401173,0.06,188.07,188.05,122.83765319]
[1755393403080,0.78,188.07,188.05,117.52]
[1755393403306,0.72,188.06,188.05,37.62]
[1755393403615,0.72,188.06,188.03,37.6]
[1755393403784,0.06,188.07,188.03,37.6]
[1755393403981,0.06,188.07,188.03,40.86289411]
[1755393404182,0.78,188.07,188.03,40.86289411]
[1755393404803,0.78,188.07,188.03,46.18106456]
[1755393406415,0.06,188.07,188.03,46.79106456]
[1755393406934,0.06,188.07,188.05,3.26289411]
[1755393407219,0.06,188.07,188.04,3.26289411]
[1755393407524,0.06,188.07,188.04,37.58]
[1755393407824,0.72,188.06,188.04,37.58]
[1755393409131,0.72,188.06,188.03,40.84289411]
[1755393409632,4.11953472,188.07,188.03,3.26289411]
[1755393409824,0.06,188.07,188.05,3.26289411]
[1755393410224,0.06,188.07,188.05,37.62]
[1755393410734,0.78,188.07,188.05,37.62]
[1755393411433,0.72,188.06,188.05,37.62]
[1755393411726,0.72,188.06,188.03,46.18114594]
[1755393413025,0.06,188.07,188.03,46.18114594]
[1755393413398,0.78,188.07,188.03,46.18114594]
[1755393413844,0.78,188.07,187.99,39.29814789]
[1755393413845,26.0,188.03,187.96,0.03]
[1755393414013,30.41642467,187.99,187.96,0.03]
[1755393414209,29.26289411,187.97,187.96,0.03]
[1755393414406,32.79723538,187.97,187.96,0.03]
[1755393414604,37.2938093,187.97,187.96,0.03]
[1755393415109,42.61380717,187.97,187.96,0.03]
[1755393417327,44.74640117,187.97,187.96,0.03]
[1755393417839,83.26640117,187.97,187.96,0.03]
[1755393418621,26.0,187.94,187.93,0.03]
[1755393418941,67.06159184,187.94,187.93,0.03]
[1755393419143,72.04801651,187.94,187.93,0.03]
[1755393419817,77.36886358,187.94,187.93,0.03]
[1755393420019,69.94361148,187.94,187.93,0.03]
[1755393420633,44.86556804,187.94,187.93,0.03]
[1755393420952,85.53850304,187.94,187.93,0.03]
[1755393421115,86.10850304,187.94,187.93,0.03]
[1755393421751,85.53850304,187.94,187.93,0.03]
[1755393422129,86.10850304,187.94,187.93,0.03]
[1755393422536,101.21471861,187.94,187.93,0.03]
[1755393422917,109.20217607,187.94,187.93,0.03]
[1755393423121,15.10621557,187.93,187.9,0.03]
[1755393423326,5.5563697,187.91,187.9,0.03]
[1755393423554,51.53584431,187.91,187.9,0.03]
[1755393423919,56.85754086,187.91,187.9,0.03]
[1755393424320,59.56081786,187.91,187.9,0.03]
[1755393426531,58.97736997,187.91,187.9,0.03]
[1755393426844,41.10621557,187.9,187.89,0.03]
[1755393427163,49.08111895,187.9,187.89,0.03]
[1755393427449,0.52887666,187.9,187.89,0.7]
[1755393427653,38.48,187.92,187.89,0.7]
[1755393427858,44.56524636,187.93,187.89,0.7]
[1755393428022,5.5563697,187.9,187.89,0.7]
[1755393428350,6.08524636,187.91,187.89,0.03]
[1755393428848,6.08524636,187.91,187.9,0.67]
[1755393429043,6.08524636,187.91,187.89,0.03]
[1755393429349,82.50140653,187.9,187.89,0.03]
[1755393429731,86.0177647,187.9,187.89,0.03]
[1755393430929,91.33974447,187.9,187.89,0.03]
[1755393431135,106.44596004,187.9,187.89,0.03]
[1755393431754,105.87596004,187.9,187.89,0.03]
[1755393432048,105.87178877,187.9,187.89,0.03]
[1755393432257,105.97178877,187.9,187.89,0.03]
[1755393432644,105.87178877,187.9,187.89,0.03]
[1755393432848,105.97178877,187.9,187.89,0.03]
[1755393434235,105.87178877,187.9,187.89,0.03]
[1755393434754,108.10540677,187.9,187.88,0.03]
[1755393434960,13.60501263,187.89,187.88,0.03]
[1755393435460,47.57731838,187.89,187.85,0.03]
[1755393435660,31.5563697,187.86,187.85,0.71]
[1755393435957,74.44865446,187.86,187.85,0.03]
[1755393436343,74.44865446,187.86,187.85,0.71]
[1755393437439,4.43228476,187.86,187.85,0.71]
[1755393437653,3.9034081,187.86,187.85,0.71]
[1755393437958,0.52887666,187.91,187.85,11.58974888]
[1755393438128,39.00887666,187.91,187.86,6.2363697]
[1755393438327,44.56524636,187.91,187.87,0.68]
[1755393438525,5.5563697,187.9,187.87,0.68]
[1755393438758,5.5563697,187.9,187.88,0.68]
[1755393438957,5.5563697,187.9,187.85,5.35337918]
[1755393439134,5.5563697,187.9,187.89,0.68]
[1755393441447,44.85654691,187.9,187.85,0.03]
[1755393441641,5.5563697,187.86,187.85,0.71]
[1755393442160,6.08524636,187.86,187.85,0.71]
[1755393443644,0.52887666,187.86,187.85,0.71]
[1755393444446,0.52887666,187.89,187.85,6.2663697]
[1755393444648,0.58887666,187.94,187.87,5.5563697]
[1755393444859,5.5563697,187.92,187.88,0.68]
[1755393445040,7.94092228,187.91,187.86,5.5563697]
[1755393445245,7.94092228,187.91,187.89,0.68]
[1755393445246,3.90120973,187.9,187.89,0.68]
[1755393446252,7.41432682,187.9,187.89,0.68]
[1755393447047,7.41739397,187.9,187.89,0.68]
[1755393447538,7.41941702,187.9,187.89,0.68]
[1755393448256,13.50466338,187.9,187.86,0.68]
[1755393448440,5.5563697,187.87,187.86,0.68]
[1755393448645,9.46266963,187.87,187.86,0.68]
[1755393449432,51.3811484,187.87,187.85,0.03]
[1755393449633,13.51002506,187.86,187.85,0.71]
[1755393450279,13.51352259,187.86,187.85,0.71]
[1755393450767,12.98464593,187.86,187.85,0.71]
[1755393451974,7.42827623,187.86,187.85,0.71]
[1755393459868,7.42827623,187.86,187.85,0.03]
[1755393461991,7.46426202,187.86,187.85,0.03]
[1755393462400,7.46426202,187.86,187.85,3.98584438]
[1755393462802,7.46426202,187.86,187.85,0.03]
[1755393463108,10.7401064,187.86,187.85,0.03]
[1755393463408,15.72653107,187.86,187.85,0.03]
[1755393463702,15.72653107,187.86,187.83,0.03]
[1755393463703,3.27584438,187.84,187.83,0.03]
[1755393463904,10.7401064,187.84,187.83,0.03]
[1755393464674,10.74267471,187.84,187.83,0.03]
[1755393464888,16.63635443,187.84,187.83,0.03]
[1755393465275,16.06635443,187.84,187.83,0.03]
[1755393465687,16.63635443,187.84,187.83,0.03]
[1755393466479,16.06635443,187.84,187.83,0.03]
[1755393466682,10.74267471,187.84,187.83,0.03]
[1755393468397,6.79432315,187.84,187.83,0.03]
[1755393474297,12.68800287,187.84,187.83,0.03]
[1755393476117,12.11800287,187.84,187.83,0.03]
[1755393479914,6.79432315,187.84,187.83,0.03]
[1755393480499,3.51847877,187.84,187.83,0.75]
[1755393480698,6.79432315,187.84,187.83,0.75]
[1755393480913,6.79432315,187.84,187.83,0.03]
[1755393481131,12.11800287,187.84,187.83,0.03]
[1755393482132,3.51847877,187.84,187.83,0.03]
[1755393482307,3.51847877,187.84,187.83,0.75]
[1755393484019,3.51847877,187.84,187.83,0.03]
[1755393484192,3.51847877,187.84,187.83,0.75]
[1755393486993,4.04735543,187.84,187.83,0.75]
[1755393487193,3.51847877,187.84,187.83,0.75]
[1755393487626,3.51847877,187.84,187.83,4.02584438]
[1755393487922,0.58887666,187.87,187.83,4.02584438]
[1755393488126,3.55266686,187.86,187.84,0.72]
[1755393488322,3.55266686,187.85,187.84,0.72]
[1755393489802,3.61266686,187.85,187.84,0.72]
[1755393490626,3.61266686,187.85,187.84,3.99584438]
[1755393490802,0.06,187.85,187.84,3.99584438]
[1755393492113,0.06,187.85,187.84,0.72]
[1755393492533,0.06,187.85,187.84,3.99584438]
[1755393493231,0.06,187.85,187.84,9.3195241]
[1755393494109,0.06,187.85,187.84,3.99584438]
[1755393494821,0.06,187.85,187.84,0.72]
[1755393495031,0.06,187.85,187.84,3.99584438]
[1755393497342,0.06,187.85,187.84,9.3195241]
[1755393497716,0.06,187.85,187.84,6.04367972]
[1755393498047,0.06,187.85,187.84,9.3195241]
[1755393498542,0.06,187.85,187.84,3.99584438]
[1755393504731,0.06,187.85,187.83,0.03]
[1755393504911,6.82856118,187.84,187.83,0.03]
[1755393505115,7.39856118,187.84,187.83,0.03]
[1755393506038,12.7222409,187.84,187.83,0.03]
[1755393506433,16.66919898,187.84,187.83,0.03]
[1755393509841,31.77541455,187.84,187.83,0.03]
[1755393510218,33.90971555,187.84,187.81,0.03]
[1755393510452,29.27584438,187.82,187.81,0.03]
[1755393510637,74.75551926,187.82,187.81,0.03]
[1755393510838,75.32551926,187.82,187.81,0.03]
[1755393512364,85.08373807,187.82,187.81,0.03]
[1755393512717,81.32379246,187.82,187.81,0.03]
[1755393512950,55.32379246,187.82,187.81,0.74]
[1755393513255,50.88982026,187.82,187.81,0.03]
[1755393513452,47.47173884,187.82,187.81,0.03]
[1755393513658,7.35743784,187.82,187.81,0.03]
[1755393514460,6.82856118,187.82,187.81,0.03]
[1755393514626,6.82856118,187.82,187.81,0.74]
[1755393515053,6.82856118,187.82,187.81,0.03]
[1755393517235,6.82856118,187.82,187.81,0.74]
[1755393518450,3.5527168,187.82,187.81,0.74]
[1755393520232,0.06,187.85,187.81,9.34037449]
[1755393520438,3.54545057,187.84,187.82,0.71]
[1755393520658,3.54545057,187.83,187.81,5.35453011]
[1755393520956,0.06,187.85,187.81,5.35453011]
[1755393521133,3.54523687,187.84,187.81,0.03]
[1755393521339,3.27584438,187.82,187.81,0.03]
[1755393521644,6.82108125,187.82,187.81,0.03]
[1755393522163,12.14532786,187.82,187.81,0.03]
[1755393522460,12.71532786,187.82,187.81,0.03]
[1755393522673,16.65283004,187.82,187.81,0.03]
[1755393523745,12.80698566,187.82,187.81,0.03]
[1755393523951,6.82108125,187.82,187.81,0.74]
[1755393524466,6.82108125,187.82,187.81,0.03]
[1755393525170,12.71532786,187.82,187.81,0.03]
[1755393525362,12.14532786,187.82,187.81,0.03]
[1755393526292,16.651522,187.82,187.81,0.03]
[1755393528058,12.14532786,187.82,187.81,0.03]
[1755393528239,16.08027484,187.82,187.81,0.03]
[1755393529389,12.80443046,187.82,187.81,0.03]
[1755393529670,16.08027484,187.82,187.81,0.03]
[1755393529870,12.14532786,187.82,187.81,0.71]
[1755393530077,12.14532786,187.82,187.81,0.03]
[1755393531462,8.86948348,187.82,187.81,0.03]
[1755393531670,12.14532786,187.82,187.81,0.03]
[1755393537384,3.54523687,187.82,187.81,0.71]
[1755393537594,29.54523687,187.82,187.81,0.71]
[1755393537787,3.54523687,187.82,187.81,0.71]
[1755393538094,29.54523687,187.82,187.81,0.71]
[1755393539284,32.82108125,187.82,187.81,0.03]
[1755393540980,38.14532786,187.82,187.81,0.03]
[1755393541197,34.86948348,187.82,187.81,0.03]
[1755393541376,29.54523687,187.82,187.81,0.71]
[1755393541574,38.14532786,187.82,187.81,0.03]
[1755393541789,32.82108125,187.82,187.81,0.03]
[1755393541988,32.82108125,187.82,187.81,0.71]
[1755393542192,29.54523687,187.82,187.81,0.71]
[1755393542585,34.86948348,187.82,187.81,0.71]
[1755393543097,42.08253309,187.82,187.81,0.03]
[1755393543282,42.65253309,187.82,187.81,0.03]
[1755393543479,47.08650529,187.82,187.81,0.03]
[1755393544286,49.22080629,187.82,187.81,0.03]
[1755393544688,45.28360106,187.82,187.81,0.03]
[1755393544881,49.22256664,187.82,187.81,0.03]
[1755393545391,44.78859444,187.82,187.8,0.03]
[1755393545590,58.9262123,187.81,187.8,0.03]
[1755393548508,54.4934536,187.81,187.8,0.03]
[1755393553617,54.50460005,187.81,187.8,0.03]
[1755393554386,54.50460005,187.81,187.79,0.68]
[1755393554608,7.4953489,187.8,187.79,0.68]
[1755393554811,7.4953489,187.8,187.78,0.03]
[1755393555115,7.99039385,187.79,187.78,0.03]
[1755393555892,3.54523687,187.79,187.78,0.7]
[1755393556111,3.54523687,187.79,187.78,3.97584438]
[1755393556902,3.54523687,187.79,187.78,0.7]
[1755393562623,3.54523687,187.79,187.78,0.03]
[1755393562991,4.07411353,187.79,187.78,0.03]
[1755393565319,3.54523687,187.79,187.78,0.03]
[1755393565608,3.54523687,187.79,187.78,0.7]
[1755393567927,3.54523687,187.79,187.78,0.03]
[1755393567928,6.82108125,187.79,187.78,0.03]
[1755393568109,11.26623823,187.79,187.78,0.03]
[1755393570003,6.82108125,187.79,187.78,0.03]
[1755393570508,3.54523687,187.79,187.78,0.03]
[1755393571114,6.82108125,187.79,187.78,0.03]
[1755393571707,12.14617843,187.79,187.78,0.03]
[1755393571911,16.66895546,187.79,187.77,0.03]
[1755393572110,11.79645652,187.78,187.77,0.03]
[1755393572831,15.7490836,187.78,187.77,0.03]
[1755393573027,12.47323922,187.78,187.77,0.03]
[1755393573200,15.7490836,187.78,187.77,0.03]
[1755393574229,21.64446436,187.78,187.77,0.03]
[1755393574599,17.19796575,187.78,187.77,0.03]
[1755393575821,13.92212137,187.78,187.77,0.03]
[1755393576132,17.19796575,187.78,187.77,0.03]
[1755393577013,17.19526334,187.78,187.77,0.03]
[1755393577236,32.30147891,187.78,187.77,0.03]
[1755393577403,15.10621557,187.77,187.76,0.03]
[1755393577608,26.44722149,187.77,187.76,0.03]
[1755393578527,36.21394575,187.77,187.76,0.03]
[1755393585346,35.64394575,187.77,187.76,0.03]
[1755393585837,35.63915266,187.77,187.76,0.03]
[1755393587518,15.20727272,187.77,187.76,0.74]
[1755393587710,52.94727272,187.77,187.76,0.74]
[1755393587915,45.23036845,187.77,187.76,0.74]
[1755393588120,7.49036845,187.77,187.76,0.74]
[1755393589334,12.81603282,187.77,187.76,0.74]
[1755393589844,16.0918772,187.77,187.76,0.03]
[1755393592245,7.49036845,187.77,187.76,0.74]
[1755393592745,41.28523687,187.77,187.76,0.74]
[1755393593635,7.4898792,187.77,187.76,0.74]
[1755393593825,3.54523687,187.77,187.76,0.74]
[1755393600249,0.06,187.79,187.77,15.10621557]
[1755393600452,0.06,187.81,187.8,41.10621557]
[1755393600635,0.06,187.81,187.8,29.27584438]
[1755393601031,0.06,187.82,187.81,15.10621557]
[1755393601376,0.06,187.82,187.81,3.27584438]
[1755393601535,0.06,187.82,187.81,18.38205995]
[1755393601858,0.06,187.82,187.81,25.83963906]
[1755393602850,0.06,187.82,187.81,8.60037449]
[1755393604024,0.06,187.82,187.78,5.32538076]
[1755393604251,0.06,187.82,187.79,3.27584438]
[1755393604455,0.06,187.82,187.81,3.27584438]